bitfinex/quotes_BTCUSD_20250127
["timestamp","ask_amount","ask_price","bid_price","bid_amount"]
[1738018876094,1.2307393,102040.0,102030.0,0.01139098]
[1738018876253,1.2307393,102040.0,102030.0,0.002]
[1738018876425,1.34785616,102040.0,102030.0,0.01964598]
[1738018876623,1.24785616,102040.0,102030.0,0.01764598]
[1738018876844,1.24785616,102040.0,102030.0,0.01364598]
[1738018877043,0.0779,102000.0,101990.0,0.392176]
[1738018877321,0.27524729,102000.0,101980.0,0.40189296]
[1738018877496,0.71839029,102000.0,101980.0,0.343183]
[1738018877719,0.201,101980.0,101970.0,0.28377983]
[1738018877934,0.98426725,101980.0,101970.0,0.08765783]
[1738018878120,1.06496725,101980.0,101970.0,0.08765783]
[1738018878293,0.001,101970.0,101960.0,0.00029694]
[1738018878472,0.44544929,101970.0,101960.0,0.19694164]
[1738018878680,0.44544929,101970.0,101960.0,0.00078764]
[1738018878897,0.29834729,101970.0,101960.0,0.14790364]
[1738018879355,0.59179658,101970.0,101960.0,0.00078764]
[1738018879556,0.49179658,101970.0,101960.0,0.00778764]
[1738018879765,0.59179658,101970.0,101960.0,0.00778764]
[1738018880112,0.49444929,101970.0,101960.0,0.00778764]
[1738018880718,0.49444929,101970.0,101960.0,0.15690364]
[1738018880922,0.44734729,101970.0,101960.0,0.15690364]
[1738018881533,0.46272822,101970.0,101960.0,0.15690364]
[1738018882076,0.46272822,101970.0,101960.0,0.15680369]
[1738018882444,0.36272822,101970.0,101960.0,0.15680369]
[1738018882665,0.46272822,101970.0,101960.0,0.15680369]
[1738018883085,0.36272822,101970.0,101960.0,0.15680369]
[1738018883240,0.16638093,101970.0,101960.0,0.15680369]
[1738018884866,0.16638093,101970.0,101960.0,0.16565476]
[1738018885060,0.16538093,101970.0,101960.0,0.16565476]
[1738018885367,0.16638093,101970.0,101960.0,0.16565476]
[1738018885676,0.16538093,101970.0,101960.0,0.16565476]
[1738018886367,0.01538093,101970.0,101960.0,0.16565476]
[1738018886587,0.77053296,101980.0,101970.0,0.147102]
[1738018886771,0.62053296,101980.0,101970.0,0.147102]
[1738018887187,0.53983296,101980.0,101970.0,0.1560854]
[1738018887979,0.49283296,101980.0,101970.0,0.1560854]
[1738018888159,0.49283296,101980.0,101970.0,0.15706603]
[1738018888362,0.1274,102000.0,101980.0,0.147087]
[1738018888566,0.1274,102000.0,101990.0,0.147073]
[1738018888788,0.1274,102000.0,101990.0,0.15600607]
[1738018889328,0.0471,102000.0,101990.0,0.15600607]
[1738018889480,0.0491,102000.0,101990.0,0.15600607]
[1738018890277,0.0471,102000.0,101990.0,0.15600607]
[1738018890719,0.0471,102000.0,101990.0,0.15700607]
[1738018891922,0.67123296,102010.0,102000.0,0.147058]
[1738018892119,0.66858025,102010.0,102000.0,0.147058]
[1738018892367,0.66858025,102010.0,102000.0,0.15430189]
[1738018892729,0.49283296,102010.0,102000.0,0.15430189]
[1738018892931,0.3911,102020.0,102010.0,0.147044]
[1738018893135,0.48859432,102020.0,102010.0,0.147044]
[1738018893335,0.48859432,102020.0,102010.0,0.15426777]
[1738018893536,0.50396797,102020.0,102010.0,0.15426777]
[1738018894386,0.35846797,102020.0,102010.0,0.15426777]
[1738018894595,0.34309432,102020.0,102010.0,0.15426777]
[1738018896239,0.35846766,102020.0,102010.0,0.15426777]
[1738018896424,0.34309432,102020.0,102010.0,0.15426777]
[1738018896627,0.34309432,102020.0,102010.0,0.15726777]
[1738018898610,0.34323562,102020.0,102010.0,0.15726777]
[1738018901373,0.21413562,102020.0,102010.0,0.15726777]
[1738018903768,0.11678833,102020.0,102010.0,0.15726777]
[1738018903971,0.11678833,102020.0,102010.0,0.26912211]
[1738018904203,0.11678833,102020.0,102010.0,0.41814182]
[1738018905217,0.11678833,102020.0,102010.0,0.42114182]
[1738018905622,0.11678833,102020.0,102010.0,0.41814182]
[1738018905829,0.13215987,102020.0,102010.0,0.41814182]
[1738018906064,0.01565987,102020.0,102010.0,0.52448911]
[1738018906244,0.00028833,102020.0,102010.0,0.52448911]
[1738018909912,0.00028833,102020.0,102010.0,0.52478584]
[1738018910473,0.01565959,102020.0,102010.0,0.52478584]
[1738018911031,0.01565959,102020.0,102010.0,0.54419854]
[1738018913001,0.0001416,102040.0,102020.0,0.297029]
[1738018913200,0.49297456,102040.0,102020.0,0.40790305]
[1738018913472,0.49297456,102040.0,102030.0,0.15430754]
[1738018914602,0.49297456,102040.0,102030.0,0.15830754]
[1738018916577,0.50834447,102040.0,102030.0,0.15830754]
[1738018917032,0.49297456,102040.0,102030.0,0.15830754]
[1738018917428,0.49297456,102040.0,102030.0,0.16812493]
[1738018920566,0.49297456,102040.0,102030.0,0.16910493]
[1738018920764,0.49297456,102040.0,102030.0,0.52732627]
[1738018920765,0.0001416,102040.0,102030.0,0.52732627]
[1738018920910,0.0001416,102040.0,102030.0,0.52634627]
[1738018921110,0.0001416,102040.0,102030.0,0.63722032]
[1738018921311,0.0001416,102040.0,102030.0,0.52634627]
[1738018921720,0.0001416,102040.0,102030.0,0.54602709]
[1738018922641,0.0001416,102040.0,102030.0,0.54202709]
[1738018922844,0.0001416,102040.0,102030.0,0.55102709]
[1738018923032,0.0001416,102040.0,102030.0,0.55302709]
[1738018923461,0.0001416,102040.0,102030.0,0.55102709]
[1738018923663,0.0001416,102040.0,102030.0,0.66190114]
[1738018923941,0.0001416,102040.0,102030.0,0.66590114]
[1738018924599,6e-07,102040.0,102030.0,0.75370114]
[1738018924935,6e-07,102040.0,102030.0,0.74370114]
[1738018925136,0.18784872,102060.0,102040.0,0.15]
[1738018925336,0.18799573,102060.0,102050.0,0.50618712]
[1738018925544,0.07149573,102060.0,102050.0,0.51245967]
[1738018926901,0.07149573,102060.0,102050.0,0.59145967]
[1738018927082,0.07149573,102060.0,102050.0,0.59445967]
[1738018927388,0.00028861,102060.0,102050.0,0.6818346]
[1738018927619,6.1e-07,102060.0,102050.0,0.6698346]
[1738018927822,0.49309946,102080.0,102070.0,0.146957]
[1738018928025,0.0002665,102080.0,102070.0,0.28918558]
[1738018928243,0.0002665,102080.0,102070.0,0.29541812]
[1738018928602,0.0002665,102080.0,102070.0,0.44541812]
[1738018929132,0.0002665,102080.0,102070.0,0.54276541]
[1738018929762,5e-07,102080.0,102070.0,0.61806541]
[1738018930191,0.0252901,102100.0,102090.0,0.146929]
[1738018930403,0.02543708,102100.0,102090.0,0.28915737]
[1738018930619,0.02543708,102100.0,102090.0,0.29534994]
[1738018931168,0.02543708,102100.0,102090.0,0.39269723]
[1738018931367,0.02543708,102100.0,102090.0,0.40069723]
[1738018931821,0.04079755,102100.0,102090.0,0.40269723]
[1738018932250,0.04068251,102100.0,102090.0,0.40269723]
[1738018932706,0.04068251,102100.0,102090.0,0.39469723]
[1738018932852,0.04068251,102100.0,102090.0,0.39269723]
[1738018933273,0.04068251,102100.0,102090.0,0.39469723]
[1738018933903,0.04068251,102100.0,102090.0,0.39269723]
[1738018934072,0.04062132,102100.0,102090.0,0.40469723]
[1738018935228,0.04062132,102100.0,102090.0,0.42403039]
[1738018935839,0.04062132,102100.0,102090.0,0.42198125]
[1738018936241,0.04062132,102100.0,102090.0,0.43154921]
[1738018936943,0.04062132,102100.0,102090.0,0.77452326]
[1738018937172,0.04062132,102100.0,102090.0,0.66364921]
[1738018937496,0.02526085,102100.0,102090.0,0.66364921]
[1738018938770,0.02526085,102100.0,102090.0,0.20399471]
[1738018938995,0.55441728,102100.0,102090.0,0.19442675]
[1738018939150,0.7154411,102100.0,102090.0,0.19442675]
[1738018939355,1.04862103,102100.0,102090.0,0.19442675]
[1738018939578,0.98224429,102100.0,102090.0,0.19442675]
[1738018940001,1.21793503,102100.0,102090.0,0.04749775]
[1738018940208,1.21793503,102100.0,102090.0,0.04449775]
[1738018940525,1.15155829,102100.0,102090.0,0.01571514]
[1738018940728,1.1869222,102100.0,102090.0,0.01571514]
[1738018940929,0.0754,102060.0,102050.0,0.342942]
[1738018941084,0.56823296,102060.0,102050.0,0.2262758]
[1738018941285,0.66558025,102060.0,102050.0,0.2262758]
[1738018942111,0.6809465,102060.0,102050.0,0.2262758]
[1738018942326,0.6809465,102060.0,102050.0,0.2352758]
[1738018942891,0.6809465,102060.0,102050.0,0.2382758]
[1738018943151,0.50819921,102060.0,102050.0,0.2382758]
[1738018943961,0.50819921,102060.0,102050.0,0.23857232]
[1738018946366,0.01536625,102060.0,102050.0,0.20826452]
[1738018947511,0.14504729,102060.0,102050.0,0.20826452]
[1738018947893,0.57201929,102060.0,102050.0,0.01229652]
[1738018948101,0.47201929,102060.0,102050.0,0.01229652]
[1738018948559,0.47201929,102060.0,102050.0,0.01133277]
[1738018948886,0.47201929,102060.0,102050.0,0.01633277]
[1738018949136,0.47201929,102060.0,102050.0,0.00833277]
[1738018949355,0.47201929,102060.0,102050.0,0.01033277]
[1738018949577,0.57201929,102060.0,102050.0,0.01033277]
[1738018949756,0.57201929,102060.0,102050.0,0.00833277]
[1738018950002,0.42504729,102060.0,102050.0,0.00833277]
[1738018950251,0.42504729,102060.0,102050.0,0.15531877]
[1738018950252,0.1277,102060.0,102050.0,0.15531877]
[1738018950446,0.69283296,102070.0,102060.0,0.146972]
[1738018950593,0.79018025,102070.0,102060.0,0.146972]
[1738018950979,0.69018025,102070.0,102060.0,0.15497475]
[1738018951158,0.49283296,102070.0,102060.0,0.15497475]
[1738018951741,0.49283296,102070.0,102060.0,0.15697475]
[1738018952530,0.49283296,102070.0,102060.0,0.15497475]
[1738018952968,0.79018025,102070.0,102060.0,0.00800275]
[1738018953190,0.79018025,102070.0,102060.0,0.15497475]
[1738018953823,0.79018025,102070.0,102060.0,0.15997475]
[1738018954030,0.80554628,102070.0,102060.0,0.15997475]
[1738018954852,0.50819899,102070.0,102060.0,0.15997475]
[1738018955059,0.01536603,102070.0,102060.0,0.31095444]
[1738018955265,0.01536603,102070.0,102060.0,0.30997475]
[1738018956392,0.01536603,102070.0,102060.0,0.31027127]
[1738018956630,0.01536603,102070.0,102060.0,0.40761856]
[1738018956821,0.01536603,102070.0,102060.0,0.40261856]
[1738018957022,0.01536603,102070.0,102060.0,0.40761856]
[1738018957473,0.01536603,102070.0,102060.0,0.40261856]
[1738018957623,0.01536603,102070.0,102060.0,0.41061856]
[1738018958051,0.01536603,102070.0,102060.0,0.52149261]
[1738018959423,0.01536603,102070.0,102060.0,0.55374058]
[1738018959703,0.01536603,102070.0,102060.0,0.56341652]
[1738018960113,0.01536603,102070.0,102060.0,0.60266552]
[1738018960543,0.49283296,102090.0,102080.0,0.146943]
[1738018960738,0.49283296,102090.0,102080.0,0.14792251]
[1738018960966,0.49283296,102090.0,102080.0,0.15601828]
[1738018961176,0.49283296,102090.0,102080.0,0.26689233]
[1738018961375,0.49283296,102090.0,102080.0,0.15503877]
[1738018961535,0.49283296,102090.0,102080.0,0.26689233]
[1738018961732,0.49283296,102090.0,102080.0,0.15503877]
[1738018961937,0.49283296,102090.0,102080.0,0.15701828]
[1738018963391,0.15235507,102100.0,102090.0,0.146929]
[1738018963592,0.15250205,102100.0,102090.0,0.146929]
[1738018963748,0.15250205,102100.0,102090.0,0.15499129]
[1738018964319,0.02540205,102100.0,102090.0,0.15499129]
[1738018964774,0.04076373,102100.0,102090.0,0.15499129]
[1738018968434,0.05905153,102100.0,102090.0,0.15499129]
[1738018972877,0.04368985,102100.0,102090.0,0.15499129]
[1738018973122,0.02540205,102100.0,102090.0,0.15499129]
[1738018976342,0.04076341,102100.0,102090.0,0.15499129]
[1738018977205,0.14076341,102100.0,102090.0,0.15499129]
[1738018977663,0.12540205,102100.0,102090.0,0.15499129]
[1738018980192,0.20527285,102100.0,102090.0,0.15499129]
[1738018981007,0.12540205,102100.0,102090.0,0.15499129]
[1738018982004,0.1407634,102100.0,102090.0,0.15499129]
[1738018982251,0.13713783,102100.0,102090.0,0.15499129]
[1738018982598,0.38139912,102100.0,102090.0,0.00806229]
[1738018982957,0.46365239,102100.0,102090.0,0.00806229]
[1738018983156,0.56099968,102100.0,102090.0,0.00806229]
[1738018983394,0.0813,102080.0,102070.0,0.14724415]
[1738018983521,0.86622325,102080.0,102070.0,0.00029715]
[1738018983740,1.24817652,102080.0,102070.0,0.00029715]
[1738018983957,1.46449999,102080.0,102070.0,0.00029715]
[1738018984305,1.54184728,102080.0,102070.0,0.00029715]
[1738018984610,1.54184728,102080.0,102070.0,0.00529715]
[1738018984611,1.20294728,102080.0,102070.0,0.00529715]
[1738018984808,0.677957,102070.0,102060.0,0.00029652]
[1738018985031,0.84168103,102070.0,102060.0,0.00029652]
[1738018985240,0.93902832,102070.0,102060.0,0.00029652]
[1738018985678,0.84168103,102070.0,102060.0,0.00029652]
[1738018985886,0.76530429,102070.0,102060.0,0.00029652]
[1738018987075,0.76730429,102070.0,102060.0,0.00029652]
[1738018987273,0.146972,102060.0,102050.0,0.19619249]
[1738018987480,0.73715225,102060.0,102050.0,0.19619249]
[1738018987888,0.49283296,102060.0,102050.0,0.19619249]
[1738018988532,0.49283296,102060.0,102050.0,0.19819249]
[1738018988757,0.49283296,102060.0,102050.0,0.19619249]
[1738018990130,0.49283296,102060.0,102050.0,0.20119249]
[1738018990353,0.49283296,102060.0,102050.0,0.20938874]
[1738018991001,0.93449954,102060.0,102050.0,0.20938874]
[1738018991205,1.00999954,102060.0,102050.0,0.01340974]
[1738018991385,0.90999954,102060.0,102050.0,0.01340974]
[1738018991590,1.05655281,102060.0,102050.0,0.01340974]
[1738018991791,1.07955281,102060.0,102050.0,0.01340974]
[1738018992022,1.07955281,102060.0,102050.0,0.00940974]
[1738018992248,1.09492138,102060.0,102050.0,0.00940974]
[1738018992600,1.09492138,102060.0,102050.0,0.00819625]
[1738018992999,0.346989,102050.0,102030.0,0.53932573]
[1738018993200,0.09734729,102040.0,102030.0,0.19645174]
[1738018993576,0.59018025,102040.0,102030.0,0.19645174]
[1738018993937,0.60554974,102040.0,102030.0,0.19645174]
[1738018994303,0.60554974,102040.0,102030.0,0.20145174]
[1738018994753,0.60554974,102040.0,102030.0,0.19645174]
[1738018994977,0.60654974,102040.0,102030.0,0.20445174]
[1738018995391,0.70389703,102040.0,102030.0,0.20445174]
[1738018995827,0.85089803,102040.0,102030.0,0.00844374]
[1738018996031,1.0100513,102040.0,102030.0,0.00944374]
[1738018996453,1.0100513,102040.0,102030.0,0.00844374]
[1738018996660,1.1830513,102040.0,102030.0,0.01044374]
[1738018996865,1.24937477,102040.0,102030.0,0.01044374]
[1738018997043,1.24837477,102040.0,102030.0,0.00244374]
[1738018997252,1.90338928,102040.0,102030.0,0.00044374]
[1738018997456,0.480029,102020.0,102010.0,0.00029673]
[1738018997656,1.63359589,102020.0,102010.0,0.00029673]
[1738018998987,1.63359589,102020.0,102010.0,0.00862704]
[1738018999175,1.63359589,102020.0,101980.0,0.343192]
[1738018999176,0.2,101990.0,101980.0,0.343192]
[1738018999380,0.79018025,101990.0,101980.0,0.3436827]
[1738018999604,0.85416011,101990.0,101980.0,0.3436827]
[1738019000115,0.79018025,101990.0,101980.0,0.3436827]
[1738019000416,0.60820928,101990.0,101980.0,0.3436827]
[1738019000693,0.60820928,101990.0,101980.0,0.3466827]
[1738019001243,0.60920928,101990.0,101980.0,0.3556827]
[1738019002956,0.67013021,101990.0,101980.0,0.3556827]
[1738019003184,0.60920928,101990.0,101980.0,0.3556827]
[1738019004534,0.70655657,101990.0,101980.0,0.3556827]
[1738019005244,0.85362957,101990.0,101980.0,0.0124907]
[1738019005456,1.01942957,101990.0,101980.0,0.01278806]
[1738019005660,1.33993325,101990.0,101980.0,0.01278806]
[1738019005883,1.49635672,101990.0,101980.0,0.01278806]
[1738019006089,1.50635672,101990.0,101980.0,0.01278806]
[1738019006295,1.50635672,101990.0,101980.0,0.0168306]
[1738019006501,1.46903325,101990.0,101980.0,0.0078306]
[1738019006884,1.47103325,101990.0,101980.0,0.0078306]
[1738019007835,1.45565693,101990.0,101980.0,0.0078306]
[1738019008045,1.45765693,101990.0,101980.0,0.0078306]
[1738019008470,1.46732603,101990.0,101980.0,0.0078306]
[1738019008873,1.5036495,101990.0,101980.0,0.0078306]
[1738019009337,1.5229047,101990.0,101980.0,0.0078306]
[1738019012378,1.53828463,101990.0,101980.0,0.0078306]
[1738019013610,2.11782463,101990.0,101980.0,0.0078306]
[1738019013813,0.34713,101950.0,101940.0,0.14714]
[1738019013989,0.93731025,101950.0,101940.0,0.14728703]
[1738019014178,0.93731025,101950.0,101940.0,0.00014703]
[1738019014800,0.76496664,101950.0,101940.0,0.00014703]
[1738019015012,0.84286664,101950.0,101940.0,0.00014703]
[1738019015241,0.90219011,101950.0,101940.0,0.00014703]
[1738019015450,1.1595374,101950.0,101940.0,0.00214703]
[1738019015639,1.1795374,101950.0,101940.0,0.00214703]
[1738019015845,1.1805374,101950.0,101940.0,0.01014703]
[1738019016048,1.19592323,101950.0,101940.0,0.00814703]
[1738019016251,1.19592323,101950.0,101940.0,0.00014703]
[1738019016252,1.19692323,101950.0,101940.0,0.00014703]
[1738019016510,1.19892323,101950.0,101940.0,0.00014703]
[1738019017049,1.17892323,101950.0,101940.0,0.00014703]
[1738019017433,1.1635374,101950.0,101940.0,0.00028873]
[1738019017742,1.19431187,101950.0,101940.0,0.00028873]
[1738019017937,1.21431187,101950.0,101940.0,0.00028873]
[1738019018167,1.1635374,101950.0,101940.0,0.00028873]
[1738019018778,1.1535374,101950.0,101940.0,0.00028873]
[1738019019188,1.16317133,101950.0,101940.0,0.00028873]
[1738019020756,1.16317133,101950.0,101900.0,0.196258]
[1738019020757,0.1,101910.0,101900.0,0.196258]
[1738019020974,0.72489835,101910.0,101900.0,0.196258]
[1738019021185,0.87208635,101910.0,101900.0,0.00014718]
[1738019021408,0.77208635,101910.0,101900.0,0.00014718]
[1738019021623,0.87208635,101910.0,101900.0,0.00628457]
[1738019022248,0.87308635,101910.0,101900.0,0.01528457]
[1738019022449,0.88847644,101910.0,101900.0,0.01928457]
[1738019022645,0.88747644,101910.0,101900.0,0.15748757]
[1738019022834,0.88747644,101910.0,101900.0,0.15848757]
[1738019023126,0.70557034,101910.0,101900.0,0.15948757]
[1738019023772,0.21273738,101910.0,101900.0,0.15948757]
[1738019023973,0.70557034,101910.0,101900.0,0.15948757]
[1738019024200,0.60557034,101910.0,101900.0,0.15948757]
[1738019026552,0.50822305,101910.0,101900.0,0.20748757]
[1738019026751,0.50822305,101910.0,101900.0,0.70385658]
[1738019026958,0.3289,101930.0,101920.0,0.147174]
[1738019027128,0.3289,101930.0,101920.0,0.23065505]
[1738019027329,0.3289,101930.0,101920.0,0.23599977]
[1738019028049,0.3289,101930.0,101920.0,0.23899977]
[1738019028257,0.00783059,101940.0,101930.0,0.195259]
[1738019028681,0.00783059,101940.0,101930.0,0.38171597]
[1738019029762,0.00883059,101940.0,101930.0,0.38971597]
[1738019031933,0.00883059,101940.0,101930.0,0.39171597]
[1738019033568,9e-08,101940.0,101930.0,0.77013733]
[1738019033770,0.42919758,101990.0,101940.0,0.2548]
[1738019033979,0.61366953,101990.0,101980.0,0.147087]
[1738019034200,0.52654487,101990.0,101980.0,0.147087]
[1738019034389,0.67654487,101990.0,101980.0,0.15321136]
[1738019034967,1.16937783,101990.0,101980.0,0.15321136]
[1738019035172,0.49313054,101990.0,101980.0,0.15321136]
[1738019035347,0.00029758,101990.0,101980.0,0.15421136]
[1738019035553,0.00029758,101990.0,101980.0,0.33441168]
[1738019036217,0.00029758,101990.0,101980.0,0.33341168]
[1738019036414,0.00029758,101990.0,101980.0,0.18632468]
[1738019036615,0.00029758,101990.0,101980.0,0.33539208]
[1738019036814,0.09764487,101990.0,101980.0,0.18341168]
[1738019037014,0.75731532,101990.0,101980.0,0.00612436]
[1738019037226,0.85731532,101990.0,101980.0,0.00612436]
[1738019037851,0.443211,101980.0,101960.0,0.735542]
[1738019038057,0.09734729,101970.0,101960.0,0.39229]
[1738019038265,0.69018025,101970.0,101960.0,0.39229]
[1738019038473,0.1,101950.0,101940.0,0.147135]
[1738019038680,0.83731025,101950.0,101940.0,0.14728218]
[1738019038882,0.69018025,101950.0,101940.0,0.14728218]
[1738019040129,0.09734729,101950.0,101940.0,0.14728218]
[1738019040376,0.59018025,101950.0,101940.0,0.14728218]
[1738019040581,0.60556343,101950.0,101940.0,0.14728218]
[1738019040739,0.60556343,101950.0,101940.0,0.15028218]
[1738019040945,0.01538318,101950.0,101940.0,0.15028218]
[1738019041166,0.1,101960.0,101940.0,0.15028218]
[1738019041369,0.27425059,101960.0,101950.0,0.14713]
[1738019041543,0.19734729,101960.0,101950.0,0.14713]
[1738019042683,0.19734729,101960.0,101950.0,0.15413]
[1738019043274,0.21272988,101960.0,101950.0,0.15413]
[1738019043925,0.21272988,101960.0,101950.0,0.15613]
[1738019049398,0.49283296,101970.0,101960.0,0.147116]
[1738019049607,0.82203054,101990.0,101980.0,0.147087]
[1738019049813,0.91937783,101990.0,101980.0,0.147087]
[1738019050227,0.91937783,101990.0,101980.0,0.15321136]
[1738019051232,0.92037783,101990.0,101980.0,0.15321136]
[1738019051430,0.92237783,101990.0,101980.0,0.15321136]
[1738019052511,0.92137783,101990.0,101980.0,0.15321136]
[1738019052707,0.00229758,101990.0,101980.0,0.32071355]
[1738019052918,0.00229758,101990.0,101980.0,0.31973308]
[1738019053137,0.00029758,101990.0,101980.0,0.46973308]
[1738019053555,0.00029758,101990.0,101980.0,0.47073308]
[1738019053776,0.00029758,101990.0,101980.0,0.30421136]
[1738019053910,0.00029758,101990.0,101980.0,0.30721136]
[1738019054110,0.00029758,101990.0,101980.0,0.30321136]
[1738019054335,0.79047783,101990.0,101980.0,0.15621136]
[1738019054569,0.88782512,101990.0,101980.0,0.16521136]
[1738019054910,0.88782512,101990.0,101980.0,0.15321136]
[1738019055115,0.88782512,101990.0,101980.0,0.16021136]
[1738019055725,1.51379812,101990.0,101980.0,0.01312436]
[1738019055927,1.33679812,101990.0,101980.0,0.01312436]
[1738019056187,1.35679812,101990.0,101980.0,0.01312436]
[1738019056331,1.37217857,101990.0,101980.0,0.01512436]
[1738019056532,1.11967857,101990.0,101980.0,0.01512436]
[1738019056833,1.09967857,101990.0,101980.0,0.01312436]
[1738019056962,1.09967857,101990.0,101980.0,0.007]
[1738019057162,1.13619812,101990.0,101980.0,0.007]
[1738019057401,1.64195612,101990.0,101980.0,0.00612436]
[1738019057544,0.1,101950.0,101940.0,0.1963217]
[1738019057744,0.59018025,101950.0,101940.0,0.19646888]
[1738019057967,0.1165,101960.0,101950.0,0.14713]
[1738019058182,0.21384729,101960.0,101950.0,0.14713]
[1738019058379,0.21384729,101960.0,101950.0,0.1524329]
[1738019060294,0.21384729,101960.0,101950.0,0.1544329]
[1738019060498,0.21384729,101960.0,101950.0,0.1614329]
[1738019061275,0.59283296,101970.0,101960.0,0.147116]
[1738019061626,0.59283296,101970.0,101960.0,0.15238533]
[1738019061831,0.60821486,101970.0,101960.0,0.15238533]
[1738019063222,0.0153819,101970.0,101960.0,0.3208878]
[1738019063437,0.0153819,101970.0,101960.0,0.5002938]
[1738019063668,0.60963054,101990.0,101980.0,0.147087]
[1738019063843,0.70697783,101990.0,101980.0,0.147087]
[1738019064305,0.70697783,101990.0,101980.0,0.15228922]
[1738019065131,0.72235687,101990.0,101980.0,0.15228922]
[1738019065442,0.72235687,101990.0,101980.0,0.15328922]
[1738019066084,0.62500958,101990.0,101980.0,0.15328922]
[1738019066315,0.01567662,101990.0,101980.0,0.47079146]
[1738019066514,0.01667662,101990.0,101980.0,0.46981094]
[1738019066769,0.01667662,101990.0,101980.0,0.50017859]
[1738019067298,0.01567662,101990.0,101980.0,0.49917859]
[1738019067515,0.01567662,101990.0,101980.0,0.19465687]
[1738019067710,0.70585687,101990.0,101980.0,0.16428922]
[1738019067913,0.79915926,101990.0,101980.0,0.16428922]
[1738019068646,0.60585687,101990.0,101980.0,0.16128922]
[1738019068849,0.50850958,101990.0,101980.0,0.15228922]
[1738019069277,0.49313054,101990.0,101980.0,0.15228922]
[1738019069476,0.49313054,101990.0,101980.0,0.15326971]
[1738019069892,0.70315428,102030.0,101990.0,0.15]
[1738019070101,0.65589167,102030.0,102020.0,0.147029]
[1738019070297,0.06571142,102030.0,102020.0,0.147029]
[1738019070546,0.06571142,102030.0,102020.0,0.15209708]
[1738019070738,0.75589167,102030.0,102020.0,0.15209708]
[1738019070949,0.75589167,102030.0,102020.0,0.00506808]
[1738019070950,1.10025396,102030.0,102020.0,0.00506808]
[1738019071533,1.23235396,102030.0,102020.0,0.00606808]
[1738019071739,1.33235396,102030.0,102020.0,0.00606808]
[1738019072367,1.33435396,102030.0,102020.0,0.00506808]
[1738019072570,1.23700667,102030.0,102020.0,0.00506808]
[1738019072909,1.23500667,102030.0,102020.0,0.00506808]
[1738019073112,1.26800667,102030.0,102020.0,0.00506808]
[1738019073313,1.27000667,102030.0,102020.0,0.00506808]
[1738019073953,0.1,102000.0,101990.0,0.392169]
[1738019074136,0.74449085,102000.0,101990.0,0.392169]
[1738019074791,0.49283296,102000.0,101990.0,0.392169]
[1738019074993,0.1,102010.0,102000.0,0.147058]
[1738019075168,0.19734729,102010.0,102000.0,0.147058]
[1738019075748,0.22662339,102010.0,102000.0,0.147058]
[1738019076007,0.0292761,102010.0,102000.0,0.147058]
[1738019076754,0.19734729,102010.0,102000.0,0.343123]
[1738019077162,0.29734729,102010.0,102000.0,0.343123]
[1738019077357,0.19734729,102010.0,102000.0,0.343123]
[1738019077624,0.19734729,102010.0,102000.0,0.347123]
[1738019077820,0.29734729,102010.0,102000.0,0.347123]
[1738019079161,0.19734729,102010.0,102000.0,0.347123]
[1738019079994,0.49283296,102020.0,102010.0,0.147044]
[1738019080208,0.49283296,102020.0,102010.0,0.1480242]
[1738019080554,0.07577155,102030.0,102020.0,0.147029]
[1738019080887,0.07577155,102030.0,102020.0,0.15421661]
[1738019081510,0.07577155,102030.0,102020.0,0.32073833]
[1738019081707,0.06600878,102030.0,102020.0,0.15521661]
[1738019082112,0.06600878,102030.0,102020.0,0.32173833]
[1738019082319,0.04740678,102030.0,102020.0,0.59208562]
[1738019082590,0.04740678,102030.0,102020.0,0.66968562]
[1738019082795,0.00178746,102030.0,102020.0,0.66968562]
[1738019082997,0.00078746,102030.0,102020.0,0.66968562]
[1738019084538,0.00078746,102030.0,102020.0,0.66868562]
[1738019084690,0.00078746,102030.0,102020.0,0.69890184]
[1738019084896,0.0001416,102040.0,102030.0,0.147015]
[1738019085063,0.0002885,102040.0,102030.0,0.31451663]
[1738019085258,0.0002885,102040.0,102030.0,0.32069081]
[1738019086124,0.0002885,102040.0,102030.0,0.32969081]
[1738019087328,0.0002885,102040.0,102030.0,0.33269081]
[1738019089413,0.0002885,102040.0,102030.0,0.33283241]
[1738019089616,0.0002885,102040.0,102030.0,0.48283241]
[1738019091510,0.0002885,102040.0,102030.0,0.5801797]
[1738019092272,0.0002885,102040.0,102030.0,0.61031612]
[1738019094113,5e-07,102040.0,102030.0,0.61031612]
[1738019096929,5e-07,102040.0,102030.0,0.34644711]
[1738019097549,5e-07,102040.0,102030.0,0.51296883]
[1738019099512,5e-07,102040.0,102030.0,0.34644711]
[1738019099717,5e-07,102040.0,102030.0,0.31631069]
[1738019100106,0.09734779,102040.0,102030.0,0.31631069]
[1738019100463,0.27417564,102040.0,102030.0,0.16631069]
[1738019100823,0.46997664,102040.0,102030.0,0.01929569]
[1738019101020,0.45037664,102040.0,102030.0,0.01929569]
[1738019101137,0.550674,102040.0,102030.0,0.16631069]
[1738019101339,0.22684515,102040.0,102030.0,0.16631069]
[1738019101751,0.22684515,102040.0,102030.0,0.15731069]
[1738019102409,0.22684515,102040.0,102030.0,0.15431069]
[1738019102617,0.22784515,102040.0,102030.0,0.15431069]
[1738019103166,0.11034575,102040.0,102030.0,0.15431069]
[1738019103373,0.21034575,102040.0,102030.0,0.15431069]
[1738019103569,0.21034575,102040.0,102030.0,0.15531069]
[1738019104019,0.01299846,102040.0,102030.0,0.32158685]
[1738019104249,0.00029786,102040.0,102030.0,0.44916657]
[1738019104373,6.5e-07,102050.0,102040.0,0.147001]
[1738019104569,6.5e-07,102050.0,102040.0,0.44085688]
[1738019104828,0.59313075,102070.0,102060.0,0.146972]
[1738019105039,0.69047804,102070.0,102060.0,0.146972]
[1738019105237,0.69047804,102070.0,102060.0,0.15391222]
[1738019105673,0.83743504,102070.0,102060.0,0.15391222]
[1738019106465,0.98743504,102070.0,102060.0,0.15391222]
[1738019106666,1.03099663,102070.0,102060.0,0.00694022]
[1738019106869,1.03099663,102070.0,102040.0,0.147]
[1738019106870,1.02848692,102070.0,102040.0,0.147]
[1738019107016,1.01107529,102060.0,102040.0,0.343]
[1738019107257,1.01107529,102060.0,102030.0,0.3921656]
[1738019107258,0.2,102040.0,102030.0,0.3921656]
[1738019107495,0.79018025,102040.0,102030.0,0.3921656]
[1738019108238,0.80190285,102040.0,102030.0,0.3921656]
[1738019109629,0.80290285,102040.0,102030.0,0.3921656]
[1738019109841,0.79118025,102040.0,102030.0,0.3931656]
[1738019110240,0.69118025,102040.0,102030.0,0.3931656]
[1738019110443,0.69118025,102040.0,102030.0,0.3991577]
[1738019111771,0.72052403,102040.0,102030.0,0.3991577]
[1738019112122,0.52317674,102040.0,102030.0,0.3991577]
[1738019112320,0.52317674,102040.0,102030.0,0.42945147]
[1738019112688,0.52347389,102040.0,102030.0,0.59572763]
[1738019112892,0.52347389,102040.0,102030.0,0.74572763]
[1738019113493,9.3e-07,102040.0,102030.0,0.84307492]
[1738019114488,9.3e-07,102040.0,102030.0,0.84707492]